Cogmind - Beta 15 @@@ ROGUE MODE // 2025.10.11 @ 19:55:44 Player: welikiq Result: Destroyed by G-47 Trooper with Particle Gun Performance ------------- Evolutions (0) 0 Regions Visited (1) 200 Robots Destroyed (7) 35 Value Destroyed (78) 78 Prototype IDs (0) 0 Alien Tech Used (0) 0 Bonus (0) 0 TOTAL SCORE: 313 Bonus ------- None Cogmind --------- Core Integrity 0/250 Matter 295/300 Energy 88/100 System Corruption 0% Temperature Cool (9) Movement Core (50) Location -10/Materials Parts ------- > --- POWER (1) -------- (None) > --- PROPULSION (2) --- (None) > --- UTILITY (2) ------ Seismic Detector > --- WEAPON (2) ------- (None) > --- INVENTORY (5) ---- Light Ion Engine Hover Unit Peak State ------------ > --- POWER ------------ Light Ion Engine > --- PROPULSION ------- Aluminum Leg Aluminum Leg > --- UTILITY ---------- Improved Terrain Scanner Seismic Detector > --- WEAPON ----------- Medium Laser Mining Laser > --- INVENTORY -------- Light Ion Engine [Rating: 9] Favorites ----------- Power Light Ion Engine Engine Light Ion Engine Propulsion Aluminum Leg Leg Aluminum Leg Hover Unit Hover Unit Utility Seismic Detector Device Seismic Detector Weapon Medium Laser Energy Gun Medium Laser Special Weapon Mining Laser Build | -11 -10 ------- Run | Yrd Mat Slots Evolved . | . . Power . | . . Propulsion . | . . Utility . | . . Weapon . | . . Parts Attached 11 | 10 1 Power 2 | 2 . Engine 2 | 2 . Core . | . . Reactor . | . . Propulsion 3 | 2 1 Treads . | . . Leg 2 | 2 . Wheel . | . . Hover 1 | . 1 Flight . | . . Utility 2 | 2 . Device 2 | 2 . Storage . | . . Processor . | . . Hackware . | . . Protection . | . . Artifact . | . . Weapon 4 | 4 . Energy Gun 3 | 3 . Energy Cannon . | . . Ballistic Gun . | . . Ballistic Cannon . | . . Launcher . | . . Special Weapon 1 | 1 . Impact Weapon . | . . Slashing Weapon . | . . Piercing Weapon . | . . Special Melee Weapon . | . . Unidentified Prototypes . | . . Parts Lost 5 | . 5 Power . | . . Propulsion 2 | . 2 Utility 1 | . 1 Weapon 2 | . 2 Highest Loss Streak 5 | . 5 To Critical Strikes . | . . Average Backups 2 | 2 1 Power . | . 1 Propulsion 1 | 1 . Utility . | . . Weapon . | . . Tool/Special . | . . Unused Backups 3 | 2 1 Power 1 | . 1 Propulsion 2 | 2 . Utility . | . . Weapon . | . . Tool/Special . | . . Average Slot Usage (%) 84 | . 84 Engine 6 | . 6 Leg 23 | . 23 Device 27 | . 27 Energy Gun 13 | . 13 Special Weapon 11 | . 11 Peak Build Rating 9 | 9 9 Average Rating 5 | 4 7 On Entrance 4 | . 9 Naked Turns . | . . Heaviest Build 8 | 8 8 Greatest Support 20 | 20 20 Greatest Overweight (x) . | . . Average Overweight (x) . | . . Largest Inventory Capacity 5 | 5 5 Average Capacity 5 | 5 5 Most Carried 5 | 5 3 Average Carried 2 | 2 1 Final Capacity 5 | 5 5 Final Carried 2 | 1 2 Class Distribution -------------------- 81% | Scavenger-Mutant 18% | Mutant Dominant Class ---------------- Mutant | -10/Materials Resources | -11 -10 ----------- Run | Yrd Mat Matter Collected 290 | 280 10 Remotely . | . . Salvage Created 220 | 114 106 Parts 19 | 17 2 Haulers Intercepted . | . . Recyclers Shooed . | . . Parts Field Recycled . | . . Retrieved Matter . | . . Parts Self-Destructed . | . . Prevented . | . . Kills | -11 -10 ------- Run | Yrd Mat Combat Hostiles Destroyed 1 | 1 . Guns 1 | 1 . Classes Destroyed 5 | 3 2 Worker 1 | 1 . Tunneler 3 | 3 . Recycler 1 | . 1 Watcher 1 | . 1 Grunt 1 | 1 . Best Kill Streak 3 | 3 1 Combat Bots Only 1 | 1 . Max Kills in Single Turn 1 | 1 1 Gunslinging . | . . Exploded . | . . Melee . | . . Uniques/NPCs Destroyed . | . . Combat | -11 -10 -------- Run | Yrd Mat Hostile Shots Fired 71 | 7 64 Missed 23 | 2 21 Hits 48 | 5 43 Projectile 48 | 5 43 Critical Strikes 2 | . 2 Damage Taken 618 | 57 561 Core 255 | 22 233 Absorbed by Shields . | . . Core Remaining (%) 91 | 91 . Volleys Fired 28 | 17 11 Largest 2 | 2 2 Hottest 150 | 100 150 Shots Fired 40 | 27 13 Gun 38 | 27 11 Cannon . | . . Launcher . | . . Special 2 | . 2 Kinetic . | . . Thermal 40 | 27 13 Explosive . | . . Electromagnetic . | . . Robot Hit Streak 4 | 3 4 Robot Miss Streak 4 | 3 4 Penetration Max . | . . Secondary Targets . | . . Shots Hit Robots 21 | 14 7 Core Hits 10 | 7 3 Critical Kills . | . . Critical Parts Destroyed . | . . Critical Strikes 4 | 2 2 Burn 4 | 2 2 Melee Attacks . | . . Impact . | . . Slashing . | . . Piercing . | . . Sneak Attacks . | . . Combat Hostiles . | . . Follow-up Attacks . | . . Damage Inflicted 293 | 195 98 Guns 261 | 187 74 Cannons . | . . Explosions . | . . Melee . | . . Ramming 8 | 8 . Kinetic . | . . Thermal 285 | 187 98 Explosive . | . . Electromagnetic . | . . Impact . | . . Slashing . | . . Piercing . | . . Highest Corruption . | . . Average Corruption . | . . Corruption Purged . | . . Corruption Blocked . | . . Overload Shots . | . . Overflow Damage . | . . Projectiles . | . . Explosions . | . . Melee . | . . Knockbacks . | . . Impact . | . . Kinetic . | . . Secondary . | . . Self-Inflicted Damage . | . . Shots . | . . Rammed . | . . Targets Rammed 3 | 3 . Kicked 3 | 3 . Crushed . | . . Highest Temperature 348 | 348 68 Average Temperature 88 | 126 27 Received Heat Transfer 384 | 30 354 Effects 2 | 2 . Energy Bleed 1 | 1 . Short Circuit 1 | 1 . Siege Activations . | . . Martial Activations . | . . Shielding Activations . | . . Robots Disrupted . | . . Combat Hostiles . | . . Robots Corrupted . | . . Combat Hostiles . | . . Parts Fried . | . . Impact Corruptions . | . . Robots Melted . | . . Combat Hostiles . | . . Parts Melted 1 | 1 . Heat Transferred 1123 | 703 420 Parts Sabotaged . | . . Parts Stolen . | . . Parts Stripped . | . . Power Chain Reactions . | . . Alert | -11 -10 ------- Run | Yrd Mat Maximum Alert Level . | . . Low Security (%) 100 | 100 100 Level 1 . | . . Level 2 . | . . Level 3 . | . . Level 4 . | . . Level 5 . | . . High Security . | . . Max Security . | . . Peak Influence 30 | 30 7 Initial . | . . Average 2 | 3 . Influence Increases 53 | 41 12 Destroy 0b10 Robot/C 20 | 20 . Destroy 0b10 Robot/NC 30 | 20 10 Destroy Leader 2 | . 2 Destroy Structure 1 | 1 . Influence Decreases 53 | 41 12 Time Decay 53 | 41 12 Squads Dispatched . | . . Investigation . | . . Extermination . | . . Reinforcement . | . . Assault . | . . Garrison . | . . Intercept . | . . Searches Triggered . | . . Construction Impeded . | . . Haulers Reinforced . | . . Active Scanning Responses . | . . Cargo Convoy Interrupts . | . . Stealth | -11 -10 --------- Run | Yrd Mat Distress Signals . | . . Communications Jammed . | . . Distress Signals . | . . Times Spotted 9 | 1 8 Peak Tracking Total 6 | 1 6 Tactical Retreats . | . . Traps | -11 -10 ------- Run | Yrd Mat Traps Triggered 1 | . 1 Indirectly . | . . Trap Hack Attempts . | . . Triggered . | . . Disarmed . | . . Reprogrammed . | . . Reused . | . . Traps Extracted . | . . Installed . | . . Triggered . | . . Machines | -11 -10 ---------- Run | Yrd Mat Machines Disabled . | . . Max in Single Turn . | . . Machines Repaired . | . . Machines Dismantled . | . . Machines Sabotaged . | . . Overloaded Fab Kills . | . . Hacking | -11 -10 --------- Run | Yrd Mat Machines Accessed . | . . Terminals . | . . Fabricators . | . . Repair Stations . | . . Recycling Units . | . . Scanalyzers . | . . Garrison Access . | . . Total Hacks . | . . Successful . | . . Failed . | . . Catastrophic . | . . Database Lockouts . | . . Manual . | . . Terminals . | . . Fabricators . | . . Repair Stations . | . . Recycling Units . | . . Scanalyzers . | . . Garrison Access . | . . Terminal Hacks . | . . Fabricator Hacks . | . . Repair Station Hacks . | . . Recycling Unit Hacks . | . . Scanalyzer . | . . Garrison Access Hacks . | . . Unauthorized Hacks . | . . Terminals . | . . Fabricators . | . . Repair Stations . | . . Recycling Units . | . . Scanalyzers . | . . Garrison Access . | . . Data Cores Recovered . | . . Used . | . . Hacking Detections . | . . Full Trace Events . | . . Feedback Events . | . . Feedback Blocked . | . . Robot Schematics Acquired . | . . Robots Built . | . . Authchips . | . . Time . | . . Total Robot Build Rating . | . . Part Schematics Acquired . | . . Parts Built . | . . Authchips . | . . Time . | . . Total Part Build Rating . | . . Parts Repaired . | . . Time . | . . Parts Recycled . | . . Recycled Matter . | . . Retrieved Matter . | . . Retrieved Components . | . . Parts Scanalyzed . | . . Part Schematics Acquired . | . . Parts Damaged . | . . Bothacking | -11 -10 ------------ Run | Yrd Mat Used RIF Installer . | . . Robots Hacked . | . . Non-combat . | . . Combat . | . . Robot Hacks Applied . | . . Relay Couplers Released . | . . Fabnet Peak Effective % . | . . Robots Rewired . | . . Allies Hacked . | . . Hacks Repelled . | . . Allies | -11 -10 -------- Run | Yrd Mat Total Allies . | . . Largest Group . | . . Highest-Rated Group . | . . Highest-Rated Ally . | . . Total Orders . | . . Ally Attacks . | . . Total Damage . | . . Kills . | . . Allies Corrupted . | . . Allies Melted . | . . Intel | -11 -10 ------- Run | Yrd Mat Active Infowar (turns) 204 | 47 157 Terrain 164 | 10 154 Seismic 204 | 47 157 Robot Analysis Total . | . . Derelict Logs Recovered . | . . Drone Launches . | . . Drone Recoveries . | . . Exploration | -11 -10 ------------- Run | Yrd Mat Turns Passed 459 | 302 157 Spaces Moved 284 | 217 67 Core 48 | 48 . Treads . | . . Legs 223 | 169 54 Wheels . | . . Hover 13 | . 13 Flight . | . . Fastest Speed 50 | 50 60 Average Speed 105 | 104 108 Slowest Speed 120 | 120 120 Overloaded Moves . | . . Propulsion Burnouts . | . . Robots Hopped . | . . Potential Cave-ins . | . . Cave-ins Triggered . | . . Exploration Rate (%) 9 | 8 11 Regions Visited 1 Branch Regions . Pre-discovered Areas . | . . Known Exits Taken . | . . Unknown Exits Taken 1 | 1 . Scrap Searched . | . . Spaces Dug . | . . Terrain Destroyed . | . . Melee . | . . Projectile . | . . AOE . | . . Terrain Rammed . | . . Walls Destroyed . | . . Machines Disabled . | . . Actions | -11 -10 --------- Run | Yrd Mat Total 400 | 266 134 Wait 54 | 3 51 Move 283 | 216 67 Hop . | . . Pick Up 13 | 12 1 Fast Attach . | . . Attach 8 | 7 1 Detach 1 | . 1 Swap 5 | 3 2 Drop 5 | 5 . Fire 28 | 17 11 Melee . | . . Ram . | . . Kick 3 | 3 . Crush . | . . Escape Stasis . | . . Rewire . | . . Trap . | . . Miscellaneous . | . . Route ------- -11/Scrapyard -10/Materials History --------- Turn | Location | Event 2 | -11/Scrapyard | Met Revision 17 94 | -11/Scrapyard | Discovered new exit (range 8) 303 | -11/Scrapyard | Entered Materials 314 | -10/Materials | Build established: Scavenger-Mutant 441 | -10/Materials | Core integrity fell below 50% 450 | -10/Materials | Core integrity fell below 20% 460 | -10/Materials | Destroyed by G-47 Trooper with Particle Gun Last Messages --------------- K-01 Serf collects debris. Acquired Hover Unit. Different forms of propulsion may not be used simultaneously, Aluminum Leg automatically deactivated. K-01 Serf collects debris. G-34 Mercenary suffers critical hit (Burn). Mining Laser destroyed. Critical hit (Burn: +37). Aluminum Leg destroyed. G-34 Mercenary heat short circuits Ion Engine. W-16 Scout destroyed. G-34 Mercenary heat short circuits Heat Sink. Critical hit (Burn: +37). A-02 Transporter destroyed. Aluminum Leg destroyed. Imp. Terrain Scanner destroyed. G-34 Mercenary heat damages Sml. Laser. Med. Laser destroyed. [Achievement: First Step to Greatness] Map ----- +----------------------------------------------------+ | ?????????????????????????????? ????????????????? | | ?????????????????????????????? #???????????????? | | ?????????????????????????????? #???????????????? | | ?????????????????????????????# #???????????????? | | ???????????????????????#?????# ##??????????????? | | ??????????????????????#??????# #???????????????? | | ??????????????????????????? ?# #???????????????? | | ??????????????????????????"??# #?##??? ????????? | | ?????????????????????????????# #? ?????????????? | | ?????????????????????????????+ # ???? ????????? | | ?????????????????????????????# # ? ??????? ????? | | ???????????????? ????????? # +???????????????? | | ?????????????????????????????# # ??????????????? | | ?????????????"?????????? ????# #???????????????? | | ????????????????? ???????????# #???????????????? | | ?????????????????????????????#% ^#???????????????? | | ????????????????? ??????###??# *^#??? ???????????? | | ???????????????????????#?????# #?#?????????????? | | ?????????????????? ???##?????# #? ? ????????"??? | | ?????????????????????????????# # ???????#?????? | | ???????????? ????????????????# %!# ?????????? ???? | | ???????????????? ?? ??????#??# # ?????? ???????? | | ?????????????????????????#???# #???????????#???? | | ??????? ###################k #?????? ????????? | | ??????? g =%! # ?? ????#?????? | | ??????? g =*@ #?#????? ##????? | | ??????????? """ !###### #????? | | ?????????????""" *!g! #????? | | ?????????????""" ############ !!!g #????? | | ???????????? ????? ?????## ??? | | ?????????? ????? ? ????#?# ###### ??? | | ??????????| "?????? ????????# # #??#####???? | | ????????? ???????????????#?# + #??????????? | | ???????????????????????"??"??# # #??????????? | | ?????????????????????????????# # #??????+???? | | ????????????????????????? ???# # #??????????? | | ????????????????##?? ????????##### # ??????? ?? | | ???????????????????? ????????????# #??????????? | | ?????????????????????T###????????# #?""???????? | | ?????????????????????????????????# #??????????? | | ??????????????????????#??????#???######? ????????? | | ?????????????????????????????????????????????????? | | ????????????????????????????????????#????????????? | | ???????????????????????????#?????????????????????? | | ?????????????????????????????????????????????????? | | ??????????????????????????????????????????#??????? | | ?????????????????????????????????????????????????? | | ??????????????????????????????????#??????????????? | | ?????????????????????????????????????????????????? | | ?????????????????????????????????????????????????? | +----------------------------------------------------+ Best States ------------- Heat Dissipation 25 Energy Generation 10 Energy Capacity 125 Matter Stores 300 Matter Capacity 300 Sight Range 16 Terrain Scan Range 16 Terrain Scan Density 10 Evasion (%) 55 Item Schematics ----------------- None Robot Schematics ------------------ None Fabricated ------------ Nothing Repaired ---------- Nothing Alien Tech Used ----------------- None Achievements -------------- First Step to Greatness Challenges ------------ None Game ------ Seed BombLobotomyRipper Manual? 0 Play Time 00:18:39 Cumulative 0.2 hours Start 2025.10.11 @ 19:37:07 End 2025.10.11 @ 19:55:44 Sessions 1 Manual Loads 0 Difficulty Rogue Special Mode None Game No. 2 Rogue 2 Adventurer 0 Explorer 0 Win Type - Total 0 Types 0/0/0/0/0/0/0/0/0/0 Lore% 0 Gallery% 0 Achievement% 0 Wizard Run 0 Options --------- Layout 1 ASCII 0 Keyboard 0 Movement Arrows Keybinds 0 Fullscreen 1 Font 32/SmallcapsGlow Map View 50x35 Zoom Use 24% Tactical HUD 0 Map Filters NONE Filters NONE Steam 1 RUN: e4c6471b-6d05-46be-a307-dd653993eed5